Department Family,Entity,Date,Expense Type,Expense Area,Supplier,Transaction Number,Amount
DOH,London Ambulance Service NHS Trust,01/07/2018,Vehicles,Capital,Volkswagen Group Uk Ltd,402833,43590.31
DOH,London Ambulance Service NHS Trust,01/07/2018,Occupational Health Fees,Healthy Workplace,People Asset Management Ltd,402895,77269.4
DOH,London Ambulance Service NHS Trust,04/07/2018,Private Ambulance Hire,Ops Central - Private Amb,Falck Uk Ambulance Service Ltd,405599,75609.15
DOH,London Ambulance Service NHS Trust,04/07/2018,Private Ambulance Hire,Ops Central - Private Amb,Falck Uk Ambulance Service Ltd,405600,84033.3
DOH,London Ambulance Service NHS Trust,04/07/2018,Private Ambulance Hire,Ops Central - Private Amb,Falck Uk Ambulance Service Ltd,405601,72262.03
DOH,London Ambulance Service NHS Trust,01/07/2018,Computer Hardware,Capital,Dell Computer Corporation Ltd,405858,28590.53
DOH,London Ambulance Service NHS Trust,01/07/2018,Private Ambulance Hire,Ops Central - Private Amb,Falck Uk Ambulance Service Ltd,405873,78299.37
DOH,London Ambulance Service NHS Trust,01/07/2018,General Accessories,Capital,Eon Energy Solutions Ltd,405989,27825.12
DOH,London Ambulance Service NHS Trust,01/07/2018,Electricity,Estate Management,British Gas,406023,29089.57
DOH,London Ambulance Service NHS Trust,01/07/2018,Vehicles,Capital,Volkswagen Group Uk Ltd,406103,43590.31
DOH,London Ambulance Service NHS Trust,04/07/2018,Vehicles,Capital,Volkswagen Group Uk Ltd,406104,43590.31
DOH,London Ambulance Service NHS Trust,04/07/2018,Vehicles,Capital,Volkswagen Group Uk Ltd,406105,43590.31
DOH,London Ambulance Service NHS Trust,01/07/2018,Technical Support - Contract,Capita Contract,Capita Secure Information Solutions Ltd,406147,58898.58
DOH,London Ambulance Service NHS Trust,01/07/2018,Computer Hardware,Telecommunications,Dell Computer Corporation Ltd,406155,32251.98
DOH,London Ambulance Service NHS Trust,01/07/2018,Computer Hardware,Capital,Jumspec Limited,406266,26400
DOH,London Ambulance Service NHS Trust,01/07/2018,Consultancy Fees,Systems,Software Box Ltd,406349,28813.18
DOH,London Ambulance Service NHS Trust,11/07/2018,Computer Periphs & Accessories,Telent Mdt Maintenance,Telent Technology Services Ltd,406352,52594.8
DOH,London Ambulance Service NHS Trust,04/07/2018,Technical Support - Contract,Telent Mdt Maintenance,Telent Technology Services Ltd,406353,237972.6
DOH,London Ambulance Service NHS Trust,01/07/2018,Cleaning Of Vehicles Makeready,Veh Prep Service Expansion,Interserve Hospital Services,406381,30968.97
DOH,London Ambulance Service NHS Trust,01/07/2018,Mobile Phone Rental,Telecommunications,Vodafone Corporate Limited,406600,276325.61
DOH,London Ambulance Service NHS Trust,01/07/2018,Rent,Brent Estates,Workman Llp,406613,33807.23
DOH,London Ambulance Service NHS Trust,01/07/2018,Lease Costs For Ops Vehicles,Frontline Fru Leases,Siemens Financial Services Ltd,406614,53843.76
DOH,London Ambulance Service NHS Trust,04/07/2018,Buildings,Capital,Coniston Limited,406774,87029.47
DOH,London Ambulance Service NHS Trust,04/07/2018,Rent,Union Street,Dron & Wright,406838,68725
DOH,London Ambulance Service NHS Trust,04/07/2018,Service Charges,Union Street,Dron & Wright,406838,22871.88
DOH,London Ambulance Service NHS Trust,01/07/2018,Cleaning Of Vehicles Makeready,Veh Prep Service Expansion,Interserve Hospital Services,407070,368270
DOH,London Ambulance Service NHS Trust,01/07/2018,Cleaning Of Vehicles Makeready,Corporate Logistics,Interserve Hospital Services,407071,258074.86
DOH,London Ambulance Service NHS Trust,01/07/2018,Data Comms Maintenance,Networks,Bt Plc,407195,188271.03,,,,,,,,, 
DOH,London Ambulance Service NHS Trust,24/07/2018,Vehicles,Capital,S & B Commercials Plc,407201,36855.6
DOH,London Ambulance Service NHS Trust,01/07/2018,Tyres,Fleet Support Services,Ats Euromaster Ltd,407203,43875.96
DOH,London Ambulance Service NHS Trust,04/07/2018,Internal Audit Fees,Governance And Compliance,Kpmg Llp,408151,28734.6
DOH,London Ambulance Service NHS Trust,20/07/2018,Data Network Rental,111 Operations,Bt Global Services,408635,-26245.33
DOH,London Ambulance Service NHS Trust,11/07/2018,Buildings,Capital,Coniston Limited,408639,47108.16
DOH,London Ambulance Service NHS Trust,11/07/2018,Cleaning Of Premises,Estate Management,Lakethorne Ltd,408797,91465.95
DOH,London Ambulance Service NHS Trust,11/07/2018,Private Ambulance Hire,Ops Central - Private Amb,Falck Uk Ambulance Service Ltd,408878,83639.53
DOH,London Ambulance Service NHS Trust,11/07/2018,Vehicles,Capital,Volkswagen Group Uk Ltd,408882,43590.31
DOH,London Ambulance Service NHS Trust,11/07/2018,Vehicles,Capital,Volkswagen Group Uk Ltd,408883,43590.31
DOH,London Ambulance Service NHS Trust,11/07/2018,Vehicles,Capital,Volkswagen Group Uk Ltd,408884,43590.31
DOH,London Ambulance Service NHS Trust,11/07/2018,Vehicles,Capital,Volkswagen Group Uk Ltd,408885,43590.31
DOH,London Ambulance Service NHS Trust,11/07/2018,Vehicles,Capital,Volkswagen Group Uk Ltd,408886,43590.31
DOH,London Ambulance Service NHS Trust,11/07/2018,Vehicles,Capital,Volkswagen Group Uk Ltd,408887,43590.31
DOH,London Ambulance Service NHS Trust,18/07/2018,External Training Services,International Graduates 18/19,F.T.S. Solutions Ltd,408972,29443.2
DOH,London Ambulance Service NHS Trust,24/07/2018,Consultancy Fees,Fleet & Logistics Management,Ayming Uk Limited,408976,31680
DOH,London Ambulance Service NHS Trust,11/07/2018,Vehicles,Capital,Wilker Auto Conversions,409194,59983
DOH,London Ambulance Service NHS Trust,11/07/2018,Vehicles,Capital,Wilker Auto Conversions,409195,59983
DOH,London Ambulance Service NHS Trust,11/07/2018,Vehicles,Capital,Wilker Auto Conversions,409196,59983
DOH,London Ambulance Service NHS Trust,11/07/2018,Vehicles,Capital,Wilker Auto Conversions,409197,59983
DOH,London Ambulance Service NHS Trust,11/07/2018,Vehicles,Capital,Wilker Auto Conversions,409198,59983
DOH,London Ambulance Service NHS Trust,11/07/2018,Vehicles,Capital,Wilker Auto Conversions,409199,59983
DOH,London Ambulance Service NHS Trust,11/07/2018,Vehicles,Capital,Wilker Auto Conversions,409200,59983
DOH,London Ambulance Service NHS Trust,11/07/2018,Vehicles,Capital,Wilker Auto Conversions,409201,59983
DOH,London Ambulance Service NHS Trust,11/07/2018,Vehicles,Capital,Wilker Auto Conversions,409202,59983
DOH,London Ambulance Service NHS Trust,11/07/2018,Vehicles,Capital,Wilker Auto Conversions,409203,59983
DOH,London Ambulance Service NHS Trust,11/07/2018,Consultancy Fees,Capital,Channel 3 Consulting Limited,409209,54000
DOH,London Ambulance Service NHS Trust,18/07/2018,Vehicles,Capital,S & B Commercials Plc,409532,36855.6
DOH,London Ambulance Service NHS Trust,11/07/2018,Vehicles,Capital,Volkswagen Group Uk Ltd,410068,43590.31
DOH,London Ambulance Service NHS Trust,11/07/2018,Defibrillator Maintenance,Supply & Material Management,Physio-Control Uk Sales Ltd,410077,27514.67
DOH,London Ambulance Service NHS Trust,24/07/2018,Computer Software,Quality Intelligence & Improv,Allocate Software Limited,410539,50400
DOH,London Ambulance Service NHS Trust,18/07/2018,Vehicles,Capital,Volkswagen Group Uk Ltd,411185,43590.31
DOH,London Ambulance Service NHS Trust,24/07/2018,Cleaning Of Vehicles Makeready,Veh Prep Service Expansion,Interserve Hospital Services,411251,258074.86
DOH,London Ambulance Service NHS Trust,18/07/2018,Vehicles,Capital,Volkswagen Group Uk Ltd,411875,43590.31
DOH,London Ambulance Service NHS Trust,18/07/2018,Technical Support - Contract,Im&T Tech Design Authority,Tm Management Solutions Ltd,411961,26400
DOH,London Ambulance Service NHS Trust,18/07/2018,Agency Professional Staff,Im&T Tech Design Authority,Tm Management Solutions Ltd,411963,25200
DOH,London Ambulance Service NHS Trust,24/07/2018,Electrical Planned,Ilford Estates,Mas Systems Ltd,412459,67829
DOH,London Ambulance Service NHS Trust,24/07/2018,Private Ambulance Hire,Ops Central - Private Amb,Falck Uk Ambulance Service Ltd,413109,70486.59
DOH,London Ambulance Service NHS Trust,24/07/2018,Private Ambulance Hire,Ops Central - Private Amb,Falck Uk Ambulance Service Ltd,413110,73268.73
DOH,London Ambulance Service NHS Trust,24/07/2018,Private Ambulance Hire,Ops Central - Private Amb,Falck Uk Ambulance Service Ltd,413111,72978.82
DOH,London Ambulance Service NHS Trust,24/07/2018,Vehicles,Capital,Volkswagen Group Uk Ltd,413274,43590.31
DOH,London Ambulance Service NHS Trust,20/07/2018,Data Network Rental,Networks,Bt Plc,413309,54407.58
DOH,London Ambulance Service NHS Trust,20/07/2018,Professional Fees,Quality & Assurance Management,Discidium Limited,413351,36055.2
DOH,London Ambulance Service NHS Trust,24/07/2018,Vehicle Recovery,Fleet Support Services,The Mansfield Group,413995,47058.48
DOH,London Ambulance Service NHS Trust,24/07/2018,Professional Fees,Im&T Management,Pa Consulting Services Ltd,413996,42000
DOH,London Ambulance Service NHS Trust,24/07/2018,Computer Software Maintenance,Systems,3tc Software Ltd,414418,75067.9
DOH,London Ambulance Service NHS Trust,02/07/2018,Ensign Insurance Debtor,Control Accounts,QBE International Insurance T/A Ensign,54768,"246,231.66"
DOH,London Ambulance Service NHS Trust,26/07/2018,Medical Gas,Director Of Ops,British Oxygen,55124,"109,026.66"
DOH,London Ambulance Service NHS Trust,16/07/2018,Fuel,Director Of Ops,BP Oil,54887,"216,589.32"
DOH,London Ambulance Service NHS Trust,23/07/2018,Child Care Arrangements,Payroll,Computerserve Vouchers,54982,"29,274.22"
DOH,London Ambulance Service NHS Trust,16/07/2018,CNST Contributions,Legal Services,NHSLA,54887,362082.5
DOH,London Ambulance Service NHS Trust,16/07/2018,Liability to 3rd Party Scheme,Legal Services,NHSLA,54887,40724.1
DOH,London Ambulance Service NHS Trust,16/07/2018,Property Expenses Scheme,Legal Services,NHSLA,54887,2431.5
